[Event "IV Pullman Blitz 2022"]
[Site "Riga, Latvia"]
[Date "2022.02.20"]
[Round "9.4"]
[White "Laimins, Lauris"]
[Black "Mustaps, Matiss"]
[Result "1-0"]
[TimeControl "180+2"]
[BlackTitle "FM"]
[WhiteElo "2124"]
[BlackElo "2261"]

1. d4 {[%emt 00:05:01]} Nf6 {[%emt 00:00:02]} 2. c4 {[%emt 00:00:01]} g6 3. Nc3
Bg7 4. e4 O-O {[%emt 00:00:01]} 5. f3 d6 {[%emt 00:00:01]} 6. Be3 a6 7. Bd3
{[%emt 00:00:02]} Nc6 {[%emt 00:00:02]} 8. Nge2 {[%emt 00:00:01]} Rb8 {[%emt
00:00:04]} 9. O-O {[%emt 00:00:04]} e5 {[%emt 00:00:07]} 10. d5 {[%emt
00:00:01]} Ne7 {[%emt 00:00:02]} 11. c5 {[%emt 00:00:02]} c6 {[%emt 00:00:07]}
12. dxc6 {[%emt 00:00:07]} Nxc6 {[%emt 00:00:05]} 13. Bc4 {[%emt 00:00:05]}
dxc5 {[%emt 00:00:04]} 14. Qxd8 {[%emt 00:00:04]} Rxd8 15. Bxc5 b5 {[%emt
00:00:12]} 16. Bb3 {[%emt 00:00:03]} Be6 {[%emt 00:00:12]} 17. Bxe6 {[%emt
00:00:03]} fxe6 {[%emt 00:00:01]} 18. Rfd1 Bf8 {[%emt 00:00:14]} 19. Bxf8
{[%emt 00:00:04]} Kxf8 {[%emt 00:00:01]} 20. Rac1 {[%emt 00:00:02]} Nd4 {[%emt
00:00:10]} 21. Kf2 {[%emt 00:00:02]} Rbc8 {[%emt 00:00:05]} 22. Ke3 {[%emt
00:00:03]} Ke7 {[%emt 00:00:06]} 23. Nxd4 {[%emt 00:00:15]} exd4+ 24. Rxd4
{[%emt 00:00:01]} Rxd4 {[%emt 00:00:06]} 25. Kxd4 {[%emt 00:00:01]} Rc4+ {[%emt
00:00:14]} 26. Ke3 {[%emt 00:00:06]} Nd7 {[%emt 00:00:12]} 27. Ne2 {[%emt
00:00:01]} Rb4 {[%emt 00:00:03]} 28. b3 {[%emt 00:00:01]} a5 {[%emt 00:00:15]}
29. Kd2 Kd6 {[%emt 00:00:11]} 30. Kc3 Nc5 31. Rd1+ {[%emt 00:00:13]} Ke5 {[%emt
00:00:44]} 32. Nd4 Na4+ {[%emt 00:00:28]} 33. bxa4 {[%emt 00:00:02]} Rc4+ 34.
Kb2 {[%emt 00:00:19]} Rb4+ {[%emt 00:00:02]} 35. Ka1 {[%emt 00:00:04]} Rxa4
{[%emt 00:00:08]} 36. Nxb5 {[%emt 00:00:02]} Kf4 {[%emt 00:00:01]} 37. Rd3
{[%emt 00:00:04]} h5 {[%emt 00:00:06]} 38. Nc3 {[%emt 00:00:02]} Rb4 {[%emt
00:00:01]} 39. Ne2+ {[%emt 00:00:07]} Ke5 {[%emt 00:00:02]} 40. Rb3 {[%emt
00:00:03]} Rc4 {[%emt 00:00:03]} 41. Kb2 h4 {[%emt 00:00:02]} 42. Rb5+ {[%emt
00:00:06]} Kf6 {[%emt 00:00:02]} 43. Rxa5 Rb4+ {[%emt 00:00:03]} 44. Kc2 {[%emt
00:00:01]} Rc4+ {[%emt 00:00:02]} 45. Nc3 h3 {[%emt 00:00:04]} 46. gxh3 Rc8
{[%emt 00:00:01]} 47. h4 {[%emt 00:00:04]} Rh8 48. h5 gxh5 {[%emt 00:00:02]} 49.
Rb5 {[%emt 00:00:05]} h4 {[%emt 00:00:01]} 50. a4 {[%emt 00:00:01]} h3 {[%emt
00:00:01]} 51. a5 {[%emt 00:00:01]} Rg8 52. Rb2 Ke5 {[%emt 00:00:04]} 53. Kd3
{[%emt 00:00:03]} Kf4 {[%emt 00:00:01]} 54. a6 {[%emt 00:00:06]} Kxf3 {[%emt
00:00:05]} 55. a7 Ra8 56. Ra2 Rd8+ {[%emt 00:00:05]} 57. Kc4 {[%emt 00:00:01]}
Rc8+ {[%emt 00:00:01]} 58. Kd4 Ra8 {[%emt 00:00:12]} 59. Nb5 {[%emt 00:00:02]}
Kf4 {[%emt 00:00:03]} 60. Nc7 {[%emt 00:00:04]} Rd8+ {[%emt 00:00:01]} 61. Kc5
Kxe4 62. a8=Q+ {[%emt 00:00:02]} Rxa8 {[%emt 00:00:01]} 63. Rxa8 {[%emt
00:00:04]} e5 64. Ra3 {[%emt 00:00:03]} Kf4 {[%emt 00:00:02]} 65. Rxh3 {[%emt
00:00:01]} e4 66. Nd5+ Kg4 67. Ra3 {[%emt 00:00:02]} 1-0

[Event "IV Pullman Blitz 2022"]
[Site "Riga, Latvia"]
[Date "2022.02.20"]
[Round "10.1"]
[White "Antoms, Guntars"]
[Black "Golubovskis, Maksims"]
[Result "0-1"]
[TimeControl "180+2"]
[WhiteTitle "IM"]
[BlackTitle "FM"]
[WhiteElo "2231"]
[BlackElo "2066"]

1. e4 {[%clk 00:04:59]} g6 {[%clk 00:04:00]} {[%emt 00:00:01]} 2. d4 {[%clk
00:04:56]} {[%emt 00:00:03]} Bg7 {[%clk 00:03:59]} 3. Nc3 {[%clk 00:04:52]}
{[%emt 00:00:03]} d6 {[%clk 00:03:59]} 4. f4 {[%clk 00:04:50]} {[%emt
00:00:02]} Nc6 {[%clk 00:03:56]} {[%emt 00:00:03]} 5. d5 {[%emt 00:00:20]} Nd4
{[%clk 00:03:53]} {[%emt 00:00:03]} 6. Be3 {[%clk 00:04:27]} {[%emt 00:00:03]}
c5 {[%clk 00:03:52]} {[%emt 00:00:01]} 7. dxc6 {[%clk 00:03:54]} {[%emt
00:00:33]} Nxc6 {[%clk 00:03:51]} {[%emt 00:00:02]} 8. Qd2 {[%clk 00:03:49]}
{[%emt 00:00:05]} Nf6 {[%clk 00:03:36]} {[%emt 00:00:15]} 9. Nf3 {[%clk
00:03:45]} {[%emt 00:00:04]} Bg4 {[%clk 00:03:16]} {[%emt 00:00:19]} 10. Bc4
{[%clk 00:03:18]} {[%emt 00:00:27]} O-O {[%clk 00:03:04]} {[%emt 00:00:13]} 11.
O-O-O {[%clk 00:03:14]} {[%emt 00:00:03]} a6 {[%clk 00:02:59]} {[%emt
00:00:06]} 12. h3 {[%clk 00:02:48]} {[%emt 00:00:26]} Bxf3 {[%clk 00:02:58]}
{[%emt 00:00:02]} 13. gxf3 {[%clk 00:02:47]} b5 {[%clk 00:02:57]} 14. Bb3
{[%clk 00:02:45]} {[%emt 00:00:02]} Nh5 {[%clk 00:02:41]} {[%emt 00:00:16]} 15.
f5 {[%clk 00:02:40]} {[%emt 00:00:05]} Ne5 {[%clk 00:02:27]} {[%emt 00:00:14]}
16. fxg6 {[%clk 00:02:32]} {[%emt 00:00:08]} hxg6 {[%clk 00:02:24]} {[%emt
00:00:03]} 17. f4 {[%clk 00:02:05]} {[%emt 00:00:27]} Nc4 {[%clk 00:02:24]} 18.
Bxc4 {[%clk 00:02:02]} {[%emt 00:00:03]} bxc4 {[%clk 00:02:23]} 19. f5 {[%clk
00:02:01]} {[%emt 00:00:02]} Qa5 {[%clk 00:01:58]} {[%emt 00:00:25]} 20. Bd4
{[%clk 00:01:46]} {[%emt 00:00:14]} Rab8 {[%clk 00:01:40]} {[%emt 00:00:19]} 21.
fxg6 {[%clk 00:01:36]} {[%emt 00:00:10]} fxg6 {[%clk 00:01:40]} 22. Bxg7 {[%clk
00:01:32]} {[%emt 00:00:03]} Nxg7 {[%clk 00:01:38]} {[%emt 00:00:02]} 23. Rdf1
{[%clk 00:01:20]} {[%emt 00:00:13]} Qb4 {[%clk 00:01:34]} {[%emt 00:00:04]} 24.
Rxf8+ {[%clk 00:01:17]} {[%emt 00:00:02]} Kxf8 {[%clk 00:01:34]} 25. Rf1+
{[%emt 00:00:04]} Kg8 26. Qd5+ {[%clk 00:01:10]} {[%emt 00:00:01]} e6 {[%clk
00:01:26]} {[%emt 00:00:07]} 27. Qg5 {[%clk 00:01:05]} {[%emt 00:00:05]} Qxb2+
{[%clk 00:01:22]} {[%emt 00:00:04]} 28. Kd2 {[%clk 00:01:04]} Qb6 {[%clk
00:01:14]} {[%emt 00:00:09]} 29. Rf3 {[%clk 00:00:51]} {[%emt 00:00:13]} Qd4+
{[%clk 00:01:11]} {[%emt 00:00:03]} 30. Kc1 {[%clk 00:00:45]} {[%emt 00:00:06]}
Rf8 {[%clk 00:00:55]} {[%emt 00:00:17]} 31. Rxf8+ {[%emt 00:00:19]} Kxf8 32.
Kb2 {[%clk 00:00:24]} {[%emt 00:00:02]} Qb6+ {[%clk 00:00:52]} {[%emt
00:00:03]} 33. Kc1 {[%clk 00:00:23]} Qd4 {[%clk 00:00:51]} {[%emt 00:00:01]} 34.
Qd8+ {[%clk 00:00:20]} {[%emt 00:00:04]} Kf7 {[%clk 00:00:50]} 35. Qd7+ {[%clk
00:00:16]} {[%emt 00:00:04]} Kg8 {[%clk 00:00:47]} {[%emt 00:00:03]} 36. Qc8+
{[%clk 00:00:13]} {[%emt 00:00:03]} Kh7 {[%clk 00:00:46]} 37. Na4 {[%clk
00:00:10]} {[%emt 00:00:02]} Qe3+ {[%clk 00:00:42]} {[%emt 00:00:04]} 38. Kb2
{[%clk 00:00:09]} {[%emt 00:00:02]} Qxe4 {[%clk 00:00:40]} {[%emt 00:00:02]} 39.
Nb6 {[%clk 00:00:07]} {[%emt 00:00:02]} Qd4+ {[%clk 00:00:38]} {[%emt
00:00:01]} 40. Kb1 {[%clk 00:00:05]} {[%emt 00:00:02]} Qxb6+ {[%clk 00:00:37]}
{[%emt 00:00:01]} 0-1

[Event "IV Pullman Blitz 2022"]
[Site "Riga, Latvia"]
[Date "2022.02.20"]
[Round "10.3"]
[White "Berzinsh, Roland"]
[Black "Kretainis, Kristaps"]
[Result "1-0"]
[TimeControl "180+2"]
[WhiteTitle "IM"]
[WhiteElo "2285"]
[BlackElo "2101"]

1. e4 {[%clk 00:04:59]} {[%emt 00:03:43]} d5 {[%clk 00:04:00]} 2. exd5 {[%clk
00:04:57]} {[%emt 00:00:02]} Qxd5 {[%clk 00:03:59]} {[%emt 00:00:01]} 3. Nc3
{[%clk 00:04:56]} Qd6 {[%clk 00:03:59]} 4. d4 {[%clk 00:04:54]} {[%emt
00:00:02]} Nf6 {[%clk 00:03:58]} 5. Nf3 {[%clk 00:04:53]} {[%emt 00:00:02]} c6
{[%clk 00:03:57]} {[%emt 00:00:01]} 6. Ne5 {[%clk 00:04:38]} {[%emt 00:00:15]}
Be6 {[%clk 00:03:56]} {[%emt 00:00:02]} 7. Bf4 {[%clk 00:04:32]} {[%emt
00:00:05]} Qd8 {[%clk 00:03:55]} 8. Qd2 {[%clk 00:04:21]} {[%emt 00:00:11]}
Nbd7 {[%clk 00:03:51]} {[%emt 00:00:04]} 9. Nd3 {[%clk 00:04:11]} {[%emt
00:00:09]} Nd5 {[%clk 00:03:39]} {[%emt 00:00:13]} 10. Nxd5 {[%clk 00:04:08]}
{[%emt 00:00:02]} Bxd5 {[%clk 00:03:38]} {[%emt 00:00:01]} 11. Rc1 {[%clk
00:04:00]} {[%emt 00:00:09]} Nf6 {[%clk 00:03:34]} {[%emt 00:00:04]} 12. f3
{[%clk 00:03:54]} {[%emt 00:00:05]} Be6 {[%clk 00:03:23]} {[%emt 00:00:11]} 13.
Nc5 {[%clk 00:03:50]} {[%emt 00:00:04]} Bc8 {[%clk 00:03:22]} 14. Bc4 {[%clk
00:03:44]} {[%emt 00:00:06]} e6 {[%clk 00:03:19]} {[%emt 00:00:03]} 15. Qf2
{[%clk 00:03:37]} {[%emt 00:00:06]} b6 {[%clk 00:03:09]} {[%emt 00:00:11]} 16.
Nd3 {[%clk 00:03:36]} {[%emt 00:00:01]} Bb7 {[%clk 00:03:04]} {[%emt 00:00:05]}
17. O-O {[%clk 00:03:33]} {[%emt 00:00:03]} Be7 {[%clk 00:03:00]} {[%emt
00:00:04]} 18. Rfe1 {[%clk 00:03:31]} {[%emt 00:00:02]} O-O {[%clk 00:02:57]}
{[%emt 00:00:02]} 19. Rcd1 {[%clk 00:03:30]} a5 {[%clk 00:02:51]} {[%emt
00:00:08]} 20. c3 {[%clk 00:03:29]} a4 {[%clk 00:02:48]} {[%emt 00:00:02]} 21.
Ne5 {[%clk 00:03:25]} {[%emt 00:00:04]} Nd5 {[%clk 00:02:43]} {[%emt 00:00:05]}
22. Bd2 {[%clk 00:03:24]} c5 {[%clk 00:02:37]} {[%emt 00:00:07]} 23. dxc5
{[%clk 00:03:19]} {[%emt 00:00:05]} Bxc5 {[%clk 00:02:36]} {[%emt 00:00:01]} 24.
Be3 {[%clk 00:03:16]} {[%emt 00:00:03]} Nxe3 {[%clk 00:02:30]} {[%emt
00:00:05]} 25. Rxd8 {[%clk 00:03:14]} {[%emt 00:00:02]} Nxc4 {[%clk 00:02:24]}
{[%emt 00:00:06]} 26. Rd4 {[%clk 00:03:11]} {[%emt 00:00:02]} Nxe5 {[%clk
00:02:21]} {[%emt 00:00:03]} 27. Rxe5 {[%clk 00:03:10]} {[%emt 00:00:01]} Rfd8
{[%clk 00:02:16]} {[%emt 00:00:05]} 28. Rxc5 {[%clk 00:03:08]} {[%emt
00:00:02]} bxc5 {[%clk 00:02:15]} 29. Rxd8+ {[%clk 00:03:08]} Rxd8 {[%clk
00:02:15]} 30. Qxc5 Bd5 {[%clk 00:02:11]} {[%emt 00:00:03]} 31. c4 {[%emt
00:00:02]} Ba8 {[%clk 00:02:07]} {[%emt 00:00:04]} 32. b4 {[%clk 00:03:04]}
{[%emt 00:00:02]} axb3 {[%clk 00:02:06]} {[%emt 00:00:01]} 33. axb3 {[%clk
00:03:03]} {[%emt 00:00:01]} h6 {[%clk 00:02:01]} {[%emt 00:00:04]} 34. Kf2
{[%clk 00:03:01]} {[%emt 00:00:02]} Rb8 {[%clk 00:01:56]} {[%emt 00:00:05]} 35.
Qa7 {[%clk 00:02:58]} {[%emt 00:00:03]} Rc8 {[%clk 00:01:52]} {[%emt 00:00:04]}
36. b4 {[%clk 00:02:56]} {[%emt 00:00:01]} Rd8 {[%clk 00:01:47]} {[%emt
00:00:05]} 37. Ke3 {[%clk 00:02:54]} {[%emt 00:00:02]} g6 {[%clk 00:01:44]}
{[%emt 00:00:03]} 38. b5 {[%clk 00:02:53]} {[%emt 00:00:01]} Kg7 {[%clk
00:01:43]} {[%emt 00:00:01]} 39. b6 {[%clk 00:02:50]} {[%emt 00:00:03]} Bc6
{[%clk 00:01:41]} {[%emt 00:00:02]} 40. Qc7 {[%clk 00:02:49]} 1-0

[Event "IV Pullman Blitz 2022"]
[Site "Riga, Latvia"]
[Date "2022.02.20"]
[Round "10.4"]
[White "Mustaps, Matiss"]
[Black "Laimins, Lauris"]
[Result "1-0"]
[TimeControl "180+2"]
[WhiteTitle "FM"]
[WhiteElo "2261"]
[BlackElo "2124"]

1. e4 {[%emt 00:03:38]} e5 {[%emt 00:00:01]} 2. Nf3 Nf6 3. Nc3 {[%emt
00:00:03]} Bb4 {[%emt 00:00:02]} 4. Nxe5 {[%emt 00:00:05]} Qe7 {[%emt
00:00:02]} 5. Nd3 {[%emt 00:00:05]} Bxc3 {[%emt 00:00:03]} 6. dxc3 Qxe4+ {[%emt
00:00:02]} 7. Be2 {[%emt 00:00:06]} O-O {[%emt 00:00:03]} 8. O-O Nc6 {[%emt
00:00:01]} 9. Bf3 {[%emt 00:00:04]} Qf5 {[%emt 00:00:03]} 10. b4 {[%emt
00:00:19]} d6 {[%emt 00:00:13]} 11. Bb2 {[%emt 00:00:05]} Ne5 {[%emt 00:00:13]}
12. Nxe5 {[%emt 00:00:07]} dxe5 13. c4 {[%emt 00:00:02]} e4 {[%emt 00:00:06]}
14. Be2 {[%emt 00:00:02]} Be6 {[%emt 00:00:05]} 15. h3 {[%emt 00:00:21]} Rad8
{[%emt 00:00:05]} 16. Qc1 Nd7 {[%emt 00:00:10]} 17. Qe3 {[%emt 00:00:02]} b6
{[%emt 00:00:07]} 18. Qg3 Rc8 {[%emt 00:00:05]} 19. Qxg7# {[%emt 00:00:01]} 1-0

[Event "IV Pullman Blitz 2022"]
[Site "Riga, Latvia"]
[Date "2022.02.20"]
[Round "11.1"]
[White "Golubovskis, Maksims"]
[Black "Mustaps, Matiss"]
[Result "0-1"]
[TimeControl "180+2"]
[WhiteTitle "FM"]
[BlackTitle "FM"]
[WhiteElo "2066"]
[BlackElo "2261"]

1. e4 {[%clk 00:03:04]} c5 {[%clk 00:03:04]} 2. Nf3 {[%clk 00:03:05]} {[%emt
00:00:01]} Nc6 {[%clk 00:03:06]} 3. d4 cxd4 {[%emt 00:00:01]} 4. Nxd4 Nf6 5.
Nc3 {[%clk 00:03:07]} {[%emt 00:00:03]} e6 {[%clk 00:03:11]} 6. Ndb5 {[%clk
00:03:07]} {[%emt 00:00:02]} Bb4 {[%clk 00:03:14]} 7. a3 Bxc3+ 8. Nxc3 {[%clk
00:03:09]} d5 {[%clk 00:03:14]} {[%emt 00:00:01]} 9. exd5 exd5 {[%emt
00:00:01]} 10. Bd3 d4 11. Ne2 Bf5 12. O-O {[%clk 00:02:56]} {[%emt 00:00:18]}
Bxd3 {[%clk 00:03:20]} {[%emt 00:00:01]} 13. Qxd3 {[%clk 00:02:58]} O-O {[%clk
00:03:21]} 14. Bg5 {[%emt 00:00:32]} Qd6 15. Rad1 {[%clk 00:02:15]} {[%emt
00:00:15]} Ng4 {[%clk 00:02:48]} {[%emt 00:00:37]} 16. Bf4 {[%clk 00:02:12]}
{[%emt 00:00:05]} Qf6 {[%clk 00:02:49]} {[%emt 00:00:01]} 17. h3 {[%clk
00:02:05]} {[%emt 00:00:08]} Nge5 {[%clk 00:02:41]} {[%emt 00:00:10]} 18. Bxe5
{[%clk 00:02:05]} {[%emt 00:00:02]} Nxe5 {[%clk 00:02:36]} {[%emt 00:00:08]} 19.
Qxd4 {[%clk 00:02:01]} {[%emt 00:00:06]} Rfe8 {[%clk 00:02:38]} 20. Ng3 {[%clk
00:01:54]} {[%emt 00:00:10]} Red8 {[%clk 00:02:15]} {[%emt 00:00:24]} 21. Qc3
{[%clk 00:01:16]} {[%emt 00:00:39]} Rdc8 {[%clk 00:02:12]} {[%emt 00:00:05]} 22.
Qb3 {[%clk 00:01:17]} {[%emt 00:00:02]} Nc4 {[%clk 00:01:51]} {[%emt 00:00:23]}
23. c3 {[%clk 00:01:18]} b6 {[%clk 00:01:23]} {[%emt 00:00:31]} 24. Rd4 {[%clk
00:01:05]} {[%emt 00:00:15]} Na5 {[%clk 00:01:19]} {[%emt 00:00:06]} 25. Qc2
{[%clk 00:00:53]} {[%emt 00:00:15]} Nc6 {[%clk 00:01:20]} 26. Re4 {[%clk
00:00:49]} {[%emt 00:00:05]} Qg6 {[%clk 00:01:14]} {[%emt 00:00:08]} 27. Qe2
{[%clk 00:00:43]} {[%emt 00:00:08]} h6 {[%clk 00:01:11]} {[%emt 00:00:05]} 28.
Rg4 {[%clk 00:00:43]} {[%emt 00:00:02]} Qe6 {[%clk 00:00:53]} {[%emt 00:00:21]}
29. Qxe6 {[%clk 00:00:43]} {[%emt 00:00:01]} fxe6 {[%clk 00:00:54]} 30. Re1
{[%clk 00:00:32]} {[%emt 00:00:13]} Re8 {[%clk 00:00:51]} {[%emt 00:00:05]} 31.
Nh5 {[%emt 00:00:10]} Re7 32. Rge4 {[%clk 00:00:19]} {[%emt 00:00:06]} Kf7
{[%clk 00:00:47]} {[%emt 00:00:09]} 33. Rf4+ {[%clk 00:00:19]} {[%emt
00:00:02]} Kg8 {[%clk 00:00:48]} 34. Rc4 {[%clk 00:00:17]} {[%emt 00:00:05]}
Na5 {[%clk 00:00:47]} {[%emt 00:00:03]} 35. Rce4 {[%clk 00:00:18]} Kf7 {[%clk
00:00:48]} 36. Nf4 {[%clk 00:00:17]} {[%emt 00:00:03]} Rae8 {[%clk 00:00:46]}
{[%emt 00:00:05]} 37. Nd3 {[%clk 00:00:16]} {[%emt 00:00:02]} Nb3 {[%clk
00:00:41]} {[%emt 00:00:07]} 38. Ne5+ {[%clk 00:00:15]} {[%emt 00:00:03]} Kg8
{[%clk 00:00:42]} 39. Nc6 {[%clk 00:00:14]} {[%emt 00:00:03]} Rc7 {[%clk
00:00:42]} {[%emt 00:00:02]} 40. Rxe6 {[%clk 00:00:13]} {[%emt 00:00:03]} Rxe6
41. Rxe6 {[%emt 00:00:04]} Nc5 {[%clk 00:00:43]} 42. Rd6 {[%clk 00:00:14]} Na4
{[%clk 00:00:41]} {[%emt 00:00:04]} 43. Rd8+ {[%clk 00:00:10]} {[%emt
00:00:06]} Kh7 {[%clk 00:00:42]} {[%emt 00:00:02]} 44. Ne5 {[%clk 00:00:04]}
{[%emt 00:00:08]} Nxb2 {[%clk 00:00:43]} {[%emt 00:00:01]} 45. Rd7 {[%clk
00:00:04]} {[%emt 00:00:02]} Rxd7 {[%clk 00:00:35]} {[%emt 00:00:10]} 46. Nxd7
{[%clk 00:00:05]} {[%emt 00:00:01]} Nc4 {[%clk 00:00:36]} 47. a4 {[%clk
00:00:04]} {[%emt 00:00:04]} Nb2 {[%clk 00:00:37]} 48. Ne5 {[%clk 00:00:03]}
{[%emt 00:00:02]} Nxa4 {[%clk 00:00:38]} {[%emt 00:00:01]} 49. c4 {[%clk
00:00:04]} {[%emt 00:00:01]} Nc5 {[%clk 00:00:40]} 50. Nc6 {[%emt 00:00:03]} a5
51. Kf1 {[%clk 00:00:04]} a4 {[%clk 00:00:43]} 52. Ke2 {[%clk 00:00:05]} {[%emt
00:00:01]} a3 {[%clk 00:00:44]} 53. Nb4 {[%clk 00:00:06]} {[%emt 00:00:01]} Kg6
{[%clk 00:00:37]} {[%emt 00:00:10]} 54. Ke3 {[%clk 00:00:07]} Kf5 {[%clk
00:00:38]} 55. Kd4 {[%clk 00:00:07]} Ke6 {[%clk 00:00:34]} {[%emt 00:00:08]} 56.
g3 {[%clk 00:00:06]} {[%emt 00:00:03]} g5 {[%clk 00:00:33]} {[%emt 00:00:02]}
57. h4 {[%clk 00:00:06]} {[%emt 00:00:02]} g4 {[%clk 00:00:34]} {[%emt
00:00:01]} 58. Na2 {[%clk 00:00:03]} {[%emt 00:00:04]} Nb3+ {[%clk 00:00:25]}
{[%emt 00:00:11]} 59. Kc3 {[%clk 00:00:05]} Nc5 {[%clk 00:00:27]} 60. Kd4
{[%clk 00:00:06]} Nb3+ {[%clk 00:00:28]} 61. Kc3 {[%clk 00:00:07]} {[%emt
00:00:01]} Nc5 {[%clk 00:00:29]} {[%emt 00:00:02]} 62. Kd4 {[%clk 00:00:07]}
{[%emt 00:00:02]} Kf5 {[%clk 00:00:22]} {[%emt 00:00:08]} 63. Nb4 {[%clk
00:00:04]} {[%emt 00:00:05]} Ne4 {[%clk 00:00:23]} {[%emt 00:00:01]} 64. Ke3
{[%clk 00:00:05]} {[%emt 00:00:01]} Nc3 {[%clk 00:00:24]} {[%emt 00:00:02]} 65.
Nc2 {[%clk 00:00:04]} {[%emt 00:00:03]} a2 {[%clk 00:00:24]} 66. Kd3 {[%clk
00:00:05]} {[%emt 00:00:01]} Nd1 67. Nd4+ {[%clk 00:00:03]} {[%emt 00:00:15]}
Ke5 {[%clk 00:00:13]} {[%emt 00:00:03]} 68. Nb3 {[%clk 00:00:05]} Nxf2+ {[%clk
00:00:14]} {[%emt 00:00:02]} 69. Ke3 {[%clk 00:00:03]} {[%emt 00:00:04]} Nh1
{[%clk 00:00:14]} {[%emt 00:00:02]} 0-1

[Event "IV Pullman Blitz 2022"]
[Site "Riga, Latvia"]
[Date "2022.02.20"]
[Round "11.3"]
[White "Batashevs, Arsens"]
[Black "Berzinsh, Roland"]
[Result "0-1"]
[TimeControl "180+2"]
[BlackTitle "IM"]
[WhiteElo "2113"]
[BlackElo "2285"]

1. Nf3 {[%clk 00:03:03]} {[%emt 00:00:01]} d5 {[%clk 00:03:03]} {[%emt
00:00:01]} 2. e3 {[%clk 00:03:04]} {[%emt 00:00:01]} Nf6 {[%clk 00:03:02]}
{[%emt 00:00:03]} 3. b3 {[%clk 00:03:05]} {[%emt 00:00:01]} Bg4 {[%clk
00:03:01]} {[%emt 00:00:03]} 4. Bb2 {[%clk 00:03:06]} {[%emt 00:00:02]} e6
{[%clk 00:02:59]} {[%emt 00:00:04]} 5. d4 {[%clk 00:03:06]} Nbd7 {[%clk
00:02:59]} {[%emt 00:00:02]} 6. Bd3 {[%clk 00:03:05]} {[%emt 00:00:04]} Bd6
{[%clk 00:02:59]} {[%emt 00:00:02]} 7. c4 {[%clk 00:03:04]} {[%emt 00:00:02]}
c6 {[%clk 00:03:00]} {[%emt 00:00:02]} 8. Nc3 {[%clk 00:03:04]} {[%emt
00:00:02]} O-O {[%clk 00:03:00]} {[%emt 00:00:02]} 9. O-O {[%clk 00:03:04]}
{[%emt 00:00:02]} e5 {[%clk 00:02:48]} {[%emt 00:00:14]} 10. cxd5 {[%clk
00:02:26]} {[%emt 00:00:40]} exd4 {[%clk 00:02:49]} 11. Ne4 {[%clk 00:01:46]}
{[%emt 00:00:42]} Nxe4 {[%clk 00:02:41]} {[%emt 00:00:10]} 12. Bxe4 {[%clk
00:01:47]} {[%emt 00:00:01]} Nf6 {[%clk 00:01:58]} {[%emt 00:00:44]} 13. Qxd4
{[%clk 00:01:20]} {[%emt 00:00:29]} Re8 {[%clk 00:01:52]} {[%emt 00:00:08]} 14.
Ng5 {[%clk 00:00:36]} {[%emt 00:00:46]} Be5 {[%clk 00:01:42]} {[%emt 00:00:12]}
15. Qxe5 {[%clk 00:00:25]} {[%emt 00:00:14]} Rxe5 {[%clk 00:01:42]} 16. Bxe5
{[%clk 00:00:26]} {[%emt 00:00:02]} Nxe4 {[%clk 00:01:37]} {[%emt 00:00:07]} 17.
Nxe4 {[%clk 00:00:26]} Qxd5 {[%clk 00:01:37]} {[%emt 00:00:01]} 18. f3 {[%clk
00:00:03]} {[%emt 00:00:25]} Qxe5 {[%clk 00:01:37]} {[%emt 00:00:02]} 19. Rad1
{[%clk 00:00:03]} {[%emt 00:00:02]} Be6 {[%clk 00:01:33]} {[%emt 00:00:06]} 20.
Rd4 {[%clk 00:00:03]} {[%emt 00:00:03]} f5 {[%clk 00:01:29]} {[%emt 00:00:05]}
0-1

[Event "IV Pullman Blitz 2022"]
[Site "Riga, Latvia"]
[Date "2022.02.20"]
[Round "12.1"]
[White "Mustaps, Matiss"]
[Black "Golubovskis, Maksims"]
[Result "1-0"]
[TimeControl "180+2"]
[WhiteTitle "FM"]
[BlackTitle "FM"]
[WhiteElo "2261"]
[BlackElo "2066"]

1. e4 {[%clk 00:03:02]} {[%emt 00:00:02]} c5 {[%clk 00:03:04]} 2. Nf3 {[%clk
00:03:04]} d6 {[%clk 00:03:06]} 3. d4 {[%clk 00:03:05]} {[%emt 00:00:01]} cxd4
{[%clk 00:03:07]} 4. Nxd4 {[%clk 00:03:06]} Nf6 {[%clk 00:03:08]} 5. Nc3 a6 6.
Bc4 {[%clk 00:03:09]} e6 {[%clk 00:03:11]} 7. Bb3 {[%clk 00:03:10]} {[%emt
00:00:01]} Be7 {[%clk 00:03:12]} 8. g4 {[%clk 00:03:07]} {[%emt 00:00:06]} h6
{[%clk 00:03:02]} {[%emt 00:00:12]} 9. Rg1 {[%clk 00:03:04]} {[%emt 00:00:05]}
d5 {[%clk 00:02:48]} {[%emt 00:00:15]} 10. exd5 {[%clk 00:03:01]} {[%emt
00:00:05]} exd5 {[%clk 00:02:49]} {[%emt 00:00:01]} 11. Qf3 {[%clk 00:03:00]}
{[%emt 00:00:02]} Nc6 {[%clk 00:02:25]} {[%emt 00:00:26]} 12. Nf5 {[%clk
00:02:36]} {[%emt 00:00:26]} Bxf5 {[%emt 00:00:49]} 13. gxf5 {[%clk 00:02:34]}
{[%emt 00:00:02]} Nd4 {[%clk 00:01:01]} {[%emt 00:00:40]} 14. Qd3 {[%clk
00:02:36]} Nxb3 {[%clk 00:01:01]} {[%emt 00:00:02]} 15. axb3 {[%clk 00:02:37]}
{[%emt 00:00:01]} Qd6 {[%clk 00:00:49]} {[%emt 00:00:14]} 16. Be3 {[%clk
00:02:20]} {[%emt 00:00:18]} O-O-O {[%emt 00:00:22]} 17. O-O-O {[%clk
00:02:14]} {[%emt 00:00:06]} Rhg8 {[%clk 00:00:25]} {[%emt 00:00:09]} 18. Qd4
{[%clk 00:02:06]} {[%emt 00:00:10]} Qc7 {[%clk 00:00:09]} {[%emt 00:00:19]} 19.
Qa7 {[%clk 00:01:57]} {[%emt 00:00:11]} Bb4 {[%clk 00:00:05]} {[%emt 00:00:05]}
20. Bb6 {[%clk 00:01:42]} {[%emt 00:00:17]} Qf4+ {[%clk 00:00:06]} {[%emt
00:00:01]} 21. Kb1 {[%clk 00:01:43]} Rd7 {[%clk 00:00:08]} 22. Rd4 {[%clk
00:01:39]} {[%emt 00:00:08]} 1-0